fUSD/lending_fUSD_20240107
["ID","MTS","AMOUNT","RATE_DAILY","PERIOD"]
[310721080,1704669046034,-3909.52483559,0.00029615,2]
[310721081,1704669046043,-2006.70768985,0.00029779,2]
[310721082,1704669046053,-303.69944424,0.00029779,2]
[310721083,1704669046062,-214.06628149,0.00029779,2]
[310721084,1704669046071,-241.12542405,0.00029779,2]
[310721085,1704669046080,-816.5524207,0.00029779,2]
[310721086,1704669046091,-2266.11245746,0.00029779,2]
[310721087,1704669046100,-268.73710833,0.00029779,2]
[310721088,1704669046110,-29352.43265146,0.0002978,2]
[310721089,1704669046138,-2440.30931548,0.0002978,2]
[310721119,1704669310099,160.0,0.00027612,120]
[310721120,1704669759751,169.41,0.00026968,120]
[310721173,1704670231891,-299.223382,0.00024095,2]
[310721179,1704670231926,-876.26698183,0.00024095,2]
[310721180,1704670231937,-310.42313234,0.00024096,2]
[310721181,1704670231949,-269.42731393,0.00024096,2]
[310721182,1704670231961,-1129.24535294,0.00024096,2]
[310721186,1704670232016,-55.17002021,0.00024096,2]
[310721189,1704670232028,-361.39120437,0.00024097,2]
[310721190,1704670232037,-3164.84546542,0.00024097,2]
[310721191,1704670232053,-156.70852364,0.00024097,2]
[310721192,1704670232062,-363.3248794,0.00024097,2]
[310721193,1704670232072,-2774.27460876,0.00024097,2]
[310721194,1704670232081,-324.443012,0.00024098,2]
[310721195,1704670232113,-484.10191491,0.00024098,2]
[310721196,1704670232124,-282.64689268,0.00024098,2]
[310721197,1704670232211,-700.0,0.00024098,2]
[310721198,1704670232223,-1826.02833574,0.00024098,2]
[310721199,1704670232233,-158.31205223,0.00024098,2]
[310721201,1704670232242,-541.98350192,0.00024098,2]
[310721203,1704670232251,-514.41907157,0.00024099,2]
[310721205,1704670232261,-2895.35543653,0.00024099,2]
[310721206,1704670232270,-150.0,0.00024099,2]
[310721208,1704670232280,-217.48290343,0.000241,2]
[310721210,1704670232290,-163.60080546,0.000241,2]
[310721212,1704670232300,-155.0,0.000241,2]
[310721213,1704670232309,-4262.74833386,0.000241,2]
[310721214,1704670232319,-161.41130318,0.000241,2]
[310721215,1704670232328,-3872.76733798,0.00024143,2]
[310721216,1704670232338,-3266.56473145,0.00024145,2]
[310721217,1704670232347,-6759.16,0.00024145,2]
[310721218,1704670232360,-156.88326633,0.0002415,2]
[310721219,1704670232370,-499.99,0.0002415,2]
[310721220,1704670232382,-2482.74,0.0002415,2]
[310721221,1704670232392,-43354.79289557,0.00024245,2]
[310721222,1704670232402,-150.0,0.000243,2]
[310721223,1704670232413,-903.11,0.00025,2]
[310721224,1704670232423,-492.29,0.00025,2]
[310721225,1704670232432,-1245.75987952,0.00025,2]
[310721226,1704670232442,-324.67,0.00025045,2]
[310721227,1704670232451,-156.88326633,0.00025538,2]
[310721228,1704670232461,-155.39587564,0.00026092,2]
[310721229,1704670232470,-399.1011347,0.00026092,2]
[310721230,1704670232479,-210.0,0.00026509,2]
[310721231,1704670232489,-1000.0,0.00026745,2]
[310721232,1704670232499,-715.48,0.00026759,2]
[310721233,1704670232508,-150.0,0.00026819,2]
[310721234,1704670232518,-200.0,0.00026853,2]
[310721235,1704670232527,-177.46,0.00026858,2]
[310721236,1704670232536,-250.0,0.0002686,2]
[310721237,1704670232546,-150.0,0.00026905,2]
[310721238,1704670232555,-500.0,0.00026923,2]
[310721239,1704670232565,-156.88326633,0.00026925,2]
[310721240,1704670232574,-500.0,0.00026937,2]
[310721241,1704670232583,-200.0,0.00026968,2]
[310721242,1704670232592,-544.84,0.00026974,2]
[310721243,1704670232603,-307.18,0.0002703,2]
[310721244,1704670232613,-610.51,0.00027102,2]
[310721245,1704670232622,-235.84993132,0.00027151,6]
[310721246,1704670232631,-2577.68,0.00027151,2]
[310721247,1704670232641,-324.67,0.00027309,2]
[310721248,1704670232651,-157.54,0.0002738,2]
[310721249,1704670232661,-348.83,0.00027397,2]
[310721250,1704670232670,-250.0,0.00027397,2]
[310721251,1704670232680,-250.0,0.000274,2]
[310721252,1704670232688,-185.9,0.00027467,2]
[310721253,1704670232698,-348.83,0.00027556,2]
[310721254,1704670232707,-348.83,0.00027714,2]
[310721255,1704670232716,-348.83,0.00027872,2]
[310721256,1704670232725,-162.99,0.00027911,2]
[310721257,1704670232734,-7235.44,0.00027945,2]
[310721258,1704670232743,-202.53914952,0.00028,2]
[310721259,1704670232753,-307.18,0.00028008,2]
[310721260,1704670232762,-348.83,0.0002803,2]
[310721261,1704670232772,-1795.0485,0.00028156,2]
[310721262,1704670232781,-348.83,0.00028189,2]
[310721263,1704670232790,-1276.16414967,0.00028287,2]
[310721264,1704670232799,-495.94499985,0.00028288,2]
[310721265,1704670232808,-156.88326633,0.00028313,2]
[310721266,1704670232817,-348.83,0.00028347,2]
[310721267,1704670232827,-348.83,0.00028505,2]
[310721268,1704670232836,-170.18,0.00028523,2]
[310721269,1704670232845,-157.27,0.0002856,2]
[310721270,1704670232857,-3180.04163262,0.00028586,2]
[310721271,1704670232867,-418.39942505,0.00028588,2]
[310721272,1704670232876,-348.83,0.00028664,2]
[310721273,1704670232885,-293.68834493,0.00028739,7]
[310721274,1704670232895,-500.0,0.00028767,2]
[310721275,1704670232905,-155.0,0.000288,2]
[310721276,1704670232916,-348.83,0.00028822,2]
[310721277,1704670232925,-171.0,0.00028856,2]
[310721278,1704670232935,-307.18,0.00028986,2]
[310721279,1704670232944,-967.08,0.00029026,2]
[310721280,1704670232955,-500.0,0.00029041,2]
[310721281,1704670232965,-938.82,0.0002926,2]
[310721282,1704670232974,-400.66,0.0002926,2]
[310721283,1704670232983,-157.27,0.00029274,2]
[310721284,1704670232993,-259.7376,0.00029298,2]
[310721285,1704670233003,-484.00491136,0.00029299,6]
[310721286,1704670233012,-13753.7494,0.00029299,2]
[310721287,1704670233022,-317.21779746,0.00029315,2]
[310721288,1704670233030,-248.11,0.00029315,2]
[310721289,1704670233040,-200.0,0.00029357,3]
[310721290,1704670233049,-800.0,0.00029357,5]
[310721291,1704670233058,-159.40151911,0.00029477,4]
[310721292,1704670233067,-7790.07334701,0.00029477,2]
[310721293,1704670233077,-393.68225135,0.00029479,2]
[310721294,1704670233086,-492.83979718,0.00029479,2]
[310721295,1704670233096,-279.95435992,0.00029479,2]
[310721296,1704670233109,-150.3425,0.00029482,2]
[310721297,1704670233118,-341.16249066,0.000295,6]
[310721298,1704670233128,-187.46180191,0.000295,3]
[310721299,1704670233137,-22336.50911485,0.000295,2]
[310721300,1704670233157,-115691.90498708,0.000295,2]
[310721301,1704670233169,-378.34710422,0.000295,2]
[310721302,1704670233193,-4395.85297667,0.000295,2]
[310721321,1704670238071,-206.0,0.00028067,2]
[310721322,1704670238081,-7799.90960524,0.000295,2]
[310721323,1704670238094,-1748.503797,0.000295,2]
[310721324,1704670238130,-1761.75999966,0.000295,2]
[310721325,1704670238179,-4743.47212054,0.000295,2]
[310721326,1704670238194,-1130.88909021,0.000295,2]
[310721327,1704670238206,-473.3383626,0.000295,2]
[310721328,1704670238343,-522.73204003,0.000295,2]
[310721329,1704670238355,-4223.37346589,0.000295,2]
[310721356,1704670240487,-260.91022685,0.000295,2]
[310721363,1704670240561,-2200.18160004,0.000295,2]
[310721378,1704670241289,-500.0,0.000295,2]
[310721379,1704670241308,-1141.14186046,0.000295,2]
[310721516,1704670242940,-258.35304974,0.000295,2]
[310721517,1704670243004,-858.49651684,0.000295,2]
[310721518,1704670243015,-9720.85047189,0.000295,2]
[310721519,1704670243300,-12310.58657248,0.000295,2]
[310721520,1704670243311,-5806.90034082,0.000295,2]
[310721521,1704670243323,-11043.28510001,0.000295,2]
[310721546,1704670245915,-329.37203646,0.00029499,2]
[310721547,1704670245925,-2083.12296354,0.00029499,2]
[310721548,1704670246044,-169.70762186,0.00029498,2]
[310721549,1704670246054,-215.55837634,0.00029499,2]
[310721550,1704670246128,-255.70534996,0.00029498,2]
[310721551,1704670246138,-475.59326888,0.00029499,2]
[310721552,1704670246147,-1582.78006033,0.00029499,2]
[310721553,1704670246156,-291.4780604,0.00029499,2]
[310721554,1704670246166,-262.48126868,0.00029499,2]
[310721555,1704670246175,-158.71730553,0.00029499,2]
[310721556,1704670246185,-1041.82337963,0.000295,2]
[310721557,1704670248640,-236.99859512,0.00029498,2]
[310721558,1704670248649,-198.82868593,0.000295,6]
[310721559,1704670248659,-5286.01003566,0.000295,2]
[310721560,1704670248678,-511.99897683,0.000295,2]
[310721561,1704670463702,535.29176155,0.00024688,7]
[310721562,1704670862207,2042.36744005,0.00025,7]
[310721563,1704671179104,675.0,3e-05,2]
[310721564,1704671189361,160.0,0.00028729,120]
[310721586,1704671422640,476.57589445,0.00025,7]
[310721607,1704671432540,-155.0,0.00023909,2]
[310721608,1704671432550,-526.7122659,0.0002391,2]
[310721609,1704671432559,-4262.74833386,0.0002391,2]
[310721610,1704671432568,-155.0,0.00023911,2]
[310721611,1704671432577,-10533.37563469,0.00023911,2]
[310721612,1704671432586,-932.02592622,0.00023911,2]
[310721613,1704671432594,-3617.22015533,0.00023912,2]
[310721614,1704671432603,-6424.19994816,0.00023913,2]
[310721615,1704671432613,-155.0,0.00023913,2]
[310721616,1704671432622,-1778.61478403,0.00023913,2]
[310721617,1704671432631,-155.41046091,0.00023913,2]
[310721618,1704671432640,-4616.27089741,0.00023915,2]
[310721619,1704671432650,-541.98350192,0.00023915,2]
[310721620,1704671432659,-155.0,0.00023922,2]
[310721621,1704671432668,-150.0,0.00023924,2]
[310721622,1704671432677,-150.0,0.00023924,2]
[310721623,1704671432686,-156.34542921,0.00023944,2]
[310721624,1704671432695,-999.99,0.00023947,2]
[310721625,1704671432705,-1091.2,0.00023947,2]
[310721626,1704671432714,-25330.06588265,0.00023947,2]
[310721627,1704671432730,-34575.25411735,0.00023947,2]
[310721628,1704671432739,-2208.0,0.00023947,2]
[310721629,1704671432749,-200.66411042,0.00024,2]
[310721630,1704671432759,-1532.9,0.0002404,2]
[310721631,1704671432768,-1321.89,0.00024052,4]
[310721632,1704671432778,-356.62,0.00024058,2]
[310721633,1704671432787,-207.9,0.00024262,2]
[310721634,1704671432797,-207.9,0.00024329,2]
[310721635,1704671432806,-207.9,0.00024395,2]
[310721636,1704671432816,-207.9,0.00024462,2]
[310721637,1704671432826,-229.1236873,0.00024464,2]
[310721638,1704671432835,-207.9,0.00024528,2]
[310721639,1704671432845,-10789.35201072,0.00024557,2]
[310721640,1704671432854,-150.99,0.00024584,2]
[310721641,1704671432866,-200.0,0.00024591,2]
[310721642,1704671432875,-207.9,0.00024595,2]
[310721643,1704671432885,-160.0,0.00024624,2]
[310721644,1704671432895,-437.51,0.00024633,2]
[310721645,1704671432905,-207.9,0.00024661,2]
[310721646,1704671432915,-30372.07488662,0.00024682,2]
[310721647,1704671432926,-200.0,0.00024683,2]
[310721648,1704671432935,-11566.16,0.00024727,2]
[310721649,1704671432945,-207.9,0.00024728,2]
[310721650,1704671432955,-207.9,0.00024795,2]
[310721651,1704671432965,-150.0,0.000248,2]
[310721652,1704671432974,-207.9,0.00024861,2]
[310721653,1704671432984,-156.34542916,0.00024876,2]
[310721654,1704671432993,-207.9,0.00024928,2]
[310721655,1704671433004,-207.9,0.00024994,2]
[310721656,1704671433014,-1000.0,0.00024999,2]
[310721657,1704671433024,-1016.22827745,0.00025,2]
[310721658,1704671433033,-166.9760429,0.00025,2]
[310721659,1704671433042,-1245.75987952,0.00025,2]
[310721660,1704671433052,-350.0,0.00025,3]
[310721661,1704671433062,-177.46,0.00025032,2]
[310721662,1704671433072,-207.9,0.00025061,2]
[310721663,1704671433082,-206.0,0.00025067,2]
[310721664,1704671433094,-207.9,0.00025127,2]
[310721665,1704671433104,-207.9,0.00025194,2]
[310721666,1704671433115,-207.9,0.0002526,2]
[310721667,1704671433125,-207.9,0.00025327,2]
[310721668,1704671433134,-207.9,0.00025393,2]
[310721669,1704671433143,-567.72,0.0002541,2]
[310721670,1704671433153,-207.9,0.0002546,2]
[310721671,1704671433164,-207.9,0.00025527,2]
[310721672,1704671433173,-437.51,0.00025612,2]
[310721673,1704671433184,-156.34542916,0.00025807,2]
[310721674,1704671433194,-250.0,0.0002583,2]
[310721675,1704671433203,-150.0,0.00026079,2]
[310721676,1704671433213,-356.62,0.00026321,2]
[310721677,1704671433223,-255.36609276,0.0002641,2]
[310721678,1704671433233,-800.0,0.00026493,2]
[310721679,1704671433242,-437.51,0.0002659,2]
[310721680,1704671433252,-3085.2,0.00026591,2]
[310721681,1704671433261,-522.8,0.00026591,2]
[310721682,1704671433271,-722.24,0.00026632,2]
[310721683,1704671433281,-229.12368729,0.0002664,2]
[310721684,1704671433290,-156.34542916,0.00026739,2]
[310721685,1704671433300,-3382.66558248,0.00026797,10]
[310721686,1704671433309,-730.76,0.00026797,2]
[310721687,1704671433319,-737.46,0.00026797,2]
[310721688,1704671433329,-187.62,0.0002682,2]
[310721689,1704671433339,-187.62,0.00026961,2]
[310721690,1704671433349,-166.88,0.00026963,2]
[310721691,1704671433359,-151.72,0.00026966,2]
[310721692,1704671433371,-400.0,0.00027,3]
[310721693,1704671433380,-1000.0,0.00027098,2]
[310721694,1704671433390,-187.62,0.00027102,2]
[310721695,1704671433400,-187.62,0.00027243,2]
[310721696,1704671433409,-1000.0,0.00027298,2]
[310721697,1704671433419,-187.62,0.00027385,2]
[310721698,1704671433429,-341.75664799,0.00027389,2]
[310721699,1704671433439,-2500.0,0.00027397,2]
[310721700,1704671433448,-250.0,0.00027397,2]
[310721701,1704671433458,-3527.07,0.00027397,2]
[310721702,1704671433467,-250.0,0.000274,2]
[310721703,1704671433477,-1000.0,0.00027498,2]
[310721704,1704671433486,-3174.92,0.00027499,2]
[310721705,1704671433496,-3174.92,0.00027499,2]
[310721706,1704671433506,-3174.92,0.00027499,2]
[310721707,1704671433515,-3174.92,0.00027499,2]
[310721708,1704671433525,-3174.92,0.00027499,2]
[310721709,1704671433535,-3174.92,0.00027499,2]
[310721710,1704671433545,-3174.92,0.00027499,2]
[310721711,1704671433554,-3174.92,0.00027499,2]
[310721712,1704671433563,-3174.92,0.00027499,2]
[310721713,1704671433573,-3174.92,0.00027499,2]
[310721714,1704671433583,-3174.92,0.00027499,2]
[310721715,1704671433592,-3174.92,0.00027499,2]
[310721716,1704671433601,-3174.92,0.00027499,2]
[310721717,1704671433611,-3174.92,0.00027499,2]
[310721718,1704671433622,-3174.92,0.00027499,2]
[310721719,1704671433632,-3174.92,0.00027499,2]
[310721720,1704671433641,-3174.92,0.00027499,2]
[310721721,1704671433651,-3174.92,0.00027499,2]
[310721722,1704671433661,-3174.92,0.00027499,2]
[310721723,1704671433671,-3174.92,0.00027499,2]
[310721724,1704671433680,-3174.92,0.00027499,2]
[310721725,1704671433690,-3174.92,0.00027499,2]
[310721726,1704671433699,-3174.92,0.00027499,2]
[310721727,1704671433709,-3174.98520088,0.00027499,2]
[310721728,1704671433719,-25803.0,0.000275,2]
[310721729,1704671433729,-2057.0,0.000275,2]
[310721730,1704671433739,-187.62,0.00027526,2]
[310721731,1704671433748,-3527.07,0.00027556,2]
[310721732,1704671433758,-437.51,0.00027569,2]
[310721733,1704671433767,-170.375,0.00027584,2]
[310721734,1704671433777,-157.346,0.00027584,2]
[310721735,1704671433787,-588.0,0.00027584,2]
[310721736,1704671433797,-2042.914,0.00027584,2]
[310721737,1704671433806,-150.0,0.00027584,2]
[310721738,1704671433817,-269.615,0.00027584,2]
[310721739,1704671433827,-521.458,0.00027584,2]
[310721740,1704671433837,-2266.0,0.00027584,2]
[310721741,1704671433846,-1026.0,0.00027584,2]
[310721742,1704671433856,-200.0,0.00027665,2]
[310721743,1704671433867,-187.62,0.00027667,2]
[310721744,1704671433877,-156.34542916,0.0002767,2]
[310721745,1704671433886,-1000.0,0.00027698,2]
[310721746,1704671433896,-3527.07,0.00027714,2]
[310721747,1704671433905,-187.62,0.00027808,2]
[310721748,1704671433915,-3527.07,0.00027872,2]
[310721749,1704671433924,-439.95276902,0.00027898,6]
[310721750,1704671433934,-1000.0,0.00027898,2]
[310721751,1704671433944,-6029.53,0.00027945,2]
[310721752,1704671433953,-2020.61,0.00027945,2]
[310721753,1704671433963,-187.62,0.00027949,2]
[310721754,1704671433973,-202.53914952,0.00028,2]
[310721755,1704671433983,-431.74556147,0.00028025,2]
[310721756,1704671433993,-3527.07,0.0002803,2]
[310721757,1704671434002,-187.62,0.0002809,2]
[310721758,1704671434012,-1000.0,0.00028098,2]
[310721759,1704671434022,-3527.07,0.00028189,2]
[310721760,1704671434031,-150.0,0.00028219,2]
[310721761,1704671434040,-187.62,0.00028232,2]
[310721762,1704671434050,-1000.0,0.00028298,2]
[310721763,1704671434059,-151.72,0.00028336,2]
[310721764,1704671434069,-3527.07,0.00028347,2]
[310721765,1704671434079,-187.62,0.00028373,2]
[310721766,1704671434088,-406.5003095,0.00028414,4]
[310721767,1704671434098,-164.02,0.00028456,2]
[310721768,1704671434107,-1500.0,0.00028481,2]
[310721769,1704671434120,-1000.0,0.00028498,2]
[310721770,1704671434129,-3527.07,0.00028505,2]
[310721771,1704671434138,-187.62,0.00028514,2]
[310721772,1704671434148,-437.51,0.00028547,2]
[310721773,1704671434157,-3180.04163262,0.00028584,2]
[310721774,1704671434166,-356.62,0.00028585,2]
[310721775,1704671434176,-156.34542916,0.00028602,2]
[310721776,1704671434186,-187.62,0.00028655,2]
[310721777,1704671434197,-3527.07,0.00028664,2]
[310721778,1704671434207,-757.05762636,0.00028683,2]
[310721779,1704671434216,-1000.0,0.00028698,2]
[310721780,1704671434226,-175.9,0.000287,2]
[310721781,1704671434235,-157.40802707,0.000287,2]
[310721782,1704671434245,-500.0,0.000287,2]
[310721783,1704671434255,-200.0,0.00028729,2]
[310721784,1704671434265,-1500.0,0.00028764,2]
[310721785,1704671434275,-325.83613964,0.00028781,7]
[310721786,1704671434285,-150.0,0.00028785,2]
[310721787,1704671434295,-150.0,0.00028793,2]
[310721788,1704671434304,-187.62,0.00028796,2]
[310721789,1704671434314,-293.86206527,0.00028797,7]
[310721790,1704671434323,-300.0,0.00028798,2]
[310721791,1704671434333,-229.12368729,0.00028816,2]
[310721792,1704671434343,-3527.07,0.00028822,2]
[310721793,1704671434353,-186.58889585,0.00028842,7]
[310721794,1704671434362,-150.0,0.00028842,2]
[310721795,1704671434372,-685.31917993,0.00028881,2]
[310721796,1704671434382,-2487.72504954,0.00028881,2]
[310721797,1704671434392,-1487.64665,0.00028888,2]
[310721798,1704671434401,-238.19390675,0.00028888,7]
[310721799,1704671434412,-1000.0,0.00028898,2]
[310721800,1704671434422,-150.0,0.00028899,2]
[310721801,1704671434431,-150.0,0.00028899,2]
[310721802,1704671434441,-90542.0,0.000289,3]
[310721803,1704671434451,-150.0,0.00028916,2]
[310721804,1704671434460,-150.0,0.00028924,2]
[310721805,1704671434470,-187.62,0.00028937,2]
[310721806,1704671434480,-150.0,0.0002895,2]
[310721807,1704671434489,-150.0,0.00028981,2]
[310721808,1704671434499,-1291.28704806,0.00028995,2]
[310721809,1704671434509,-6950.63653305,0.00029,2]
[310721810,1704671434519,-450.0,0.00029,3]
[310721811,1704671434529,-245.3018834,0.00029045,2]
[310721812,1704671434539,-150.0,0.00029068,2]
[310721813,1704671434549,-187.62,0.00029078,2]
[310721814,1704671434559,-150.0,0.00029082,2]
[310721815,1704671434569,-150.0,0.00029093,2]
[310721816,1704671434579,-1000.0,0.00029098,2]
[310721817,1704671434589,-400.66,0.00029104,2]
[310721818,1704671434600,-150.0,0.00029123,2]
[310721819,1704671434609,-1291.28704806,0.00029149,2]
[310721820,1704671434620,-150.0,0.00029164,2]
[310721821,1704671434630,-150.0,0.00029168,2]
[310721822,1704671434639,-150.0,0.00029171,2]
[310721823,1704671434649,-521.69660047,0.00029179,4]
[310721824,1704671434660,-406.50030944,0.00029194,4]
[310721825,1704671434670,-938.82,0.00029205,2]
[310721826,1704671434679,-938.82,0.00029205,2]
[310721827,1704671434689,-400.66,0.00029205,2]
[310721828,1704671434698,-938.82,0.00029205,2]
[310721829,1704671434708,-400.66,0.00029205,2]
[310721830,1704671434717,-400.66,0.00029205,2]
[310721831,1704671434727,-938.82,0.00029205,2]
[310721832,1704671434737,-33372.44780234,0.0002921,2]
[310721833,1704671434746,-150.0,0.00029214,2]
[310721834,1704671434756,-150.0,0.00029216,2]
[310721835,1704671434765,-187.62,0.0002922,2]
[310721836,1704671434775,-150.0,0.00029225,2]
[310721837,1704671434784,-150.0,0.00029235,2]
[310721838,1704671434794,-150.0,0.00029236,2]
[310721839,1704671434803,-286.44273519,0.00029244,2]
[310721840,1704671434813,-175.9,0.00029248,2]
[310721841,1704671434823,-171.85,0.00029248,2]
[310721842,1704671434833,-150.0,0.00029254,2]
[310721843,1704671434842,-150.0,0.00029256,2]
[310721844,1704671434852,-150.0,0.00029257,2]
[310721845,1704671434861,-407.44,0.0002926,2]
[310721846,1704671434873,-150.99,0.0002926,2]
[310721847,1704671434882,-417.33,0.0002926,2]
[310721848,1704671434891,-152.27,0.0002926,2]
[310721849,1704671434902,-313.77,0.0002926,2]
[310721850,1704671434911,-175.11,0.0002926,2]
[310721851,1704671434923,-293.55,0.0002926,2]
[310721852,1704671434933,-417.33,0.0002926,2]
[310721853,1704671434942,-293.55,0.0002926,2]
[310721854,1704671434952,-417.0,0.0002926,2]
[310721855,1704671434962,-150.0,0.00029281,2]
[310721857,1704671434971,-150.0,0.00029282,2]
[310721859,1704671434980,-150.0,0.00029293,2]
[310721860,1704671434989,-500.0,0.00029295,2]
[310721862,1704671435000,-1000.0,0.00029298,2]
[310721864,1704671435010,-150.0,0.000293,2]
[310721865,1704671435020,-201.76112699,0.000293,2]
[310721867,1704671435030,-150.0,0.00029306,2]
[310721868,1704671435040,-500.0,0.00029326,2]
[310721870,1704671435050,-150.0,0.00029329,2]
[310721872,1704671435061,-150.0,0.00029344,2]
[310721874,1704671435071,-150.0,0.00029355,2]
[310721875,1704671435081,-500.0,0.00029357,2]
[310721877,1704671435092,-200.0,0.00029357,3]
[310721879,1704671435104,-200.0,0.00029357,2]
[310721881,1704671435120,-800.0,0.00029357,5]
[310721883,1704671435131,-187.62,0.00029361,2]
[310721884,1704671435142,-150.0,0.0002937,2]
[310721886,1704671435152,-150.0,0.0002937,2]
[310721888,1704671435161,-300.0,0.00029376,2]
[310721889,1704671435172,-150.0,0.00029379,2]
[310721891,1704671435182,-5567.96289269,0.00029389,2]
[310721893,1704671435193,-699.4852,0.00029389,2]
[310721895,1704671435205,-159.58540463,0.0002939,2]
[310721896,1704671435216,-151.0,0.00029398,7]
[310721898,1704671435226,-151.0,0.00029398,7]
[310721900,1704671435237,-151.0,0.00029399,7]
[310721901,1704671435247,-65964.75131364,0.000294,2]
[310721905,1704671435276,-804.23312883,0.000294,2]
[310721908,1704671435312,-1422.7064784,0.000294,2]
[310721911,1704671435337,-1003.30335493,0.000294,2]
[310721925,1704671435666,-433.59794111,0.000294,2]
[310721926,1704671435694,-294.350642,0.000294,2]
[310721927,1704671436519,-282.95863908,0.00023909,2]
[310721928,1704671436530,-16729.12163178,0.00023909,2]
[310721929,1704671436540,-33683.13120386,0.0002391,2]
[310721930,1704671436549,-150.0,0.00028899,2]
[310721931,1704671436559,-150.0,0.00028899,2]
[310721932,1704671436568,-150.0,0.00028899,2]
[310721933,1704671436578,-150.0,0.00028899,2]
[310721934,1704671436587,-150.0,0.00028899,2]
[310721935,1704671436597,-150.0,0.00028899,2]
[310721936,1704671436606,-150.0,0.00028899,2]
[310721937,1704671436617,-474.27476,0.00029398,7]
[310721938,1704671436627,-14579.63769271,0.000294,2]
[310721939,1704671438106,-474.27476,0.00029398,7]
[310721940,1704671438116,-41.17396529,0.000294,2]
[310721941,1704671438274,-15456.24548309,0.000294,2]
[310721942,1704671438285,-384.78137317,0.000294,2]
[310721943,1704671438295,-151.0,0.000294,7]
[310721944,1704671438305,-151.0,0.000294,7]
[310721945,1704671438315,-151.0,0.000294,7]
[310721946,1704671438324,-151.0,0.000294,7]
[310721947,1704671438334,-151.0,0.000294,7]
[310721948,1704671438343,-7400.56967954,0.000294,2]
[310721949,1704671438353,-7400.56967954,0.000294,2]
[310721950,1704671438363,-151.0,0.000294,7]
[310721951,1704671438373,-474.27476,0.000294,7]
[310721952,1704671438382,-474.27476,0.000294,7]
[310721953,1704671438393,-10000.0,0.00029403,2]
[310721954,1704671438402,-500.0,0.00029418,2]
[310721955,1704671438412,-150.0,0.00029418,2]
[310721956,1704671438422,-150.0,0.00029428,2]
[310721957,1704671438432,-150.0,0.00029433,2]
[310721958,1704671438553,-150.0,0.00029447,2]
[310721959,1704671438563,-1500.0,0.00029448,2]
[310721960,1704671438577,-150.0,0.00029467,2]
[310721961,1704671438586,-150.0,0.00029468,2]
[310721962,1704671438595,-7400.56967954,0.00029477,2]
[310721963,1704671438604,-500.0,0.00029479,2]
[310721964,1704671438614,-185.99,0.00029488,2]
[310721965,1704671438624,-125148.08073475,0.00029489,2]
[310721966,1704671438633,-151.0,0.00029489,3]
[310721968,1704671438642,-151.0,0.00029489,7]
[310721970,1704671438651,-151.0,0.00029489,7]
[310721972,1704671438660,-151.0,0.00029489,7]
[310721974,1704671438669,-151.0,0.00029489,7]
[310721976,1704671438679,-151.0,0.00029489,7]
[310721978,1704671438688,-214.661676,0.00029489,7]
[310721980,1704671438697,-474.27476,0.00029489,7]
[310721983,1704671438709,-474.27476,0.00029489,7]
[310721985,1704671438718,-444.0,0.00029493,5]
[310721987,1704671438728,-1000.0,0.00029498,2]
[310721989,1704671438737,-191.062236,0.00029499,3]
[310721991,1704671438746,-151.0,0.00029499,7]
[310721993,1704671438755,-26273.53304748,0.000295,2]
[310721995,1704671438765,-735.08,0.000295,2]